[Event "CZE-ch Junior 2020"]
[Site "Kouty nad Desnou"]
[Date "2020.03.09"]
[Round "5.2"]
[White "Riha, Vojtech"]
[Black "Finek, Vaclav"]
[Result "1-0"]
[ECO "C47"]
[WhiteElo "2306"]
[BlackElo "2211"]
[Annotator "ChessBase"]
[PlyCount "103"]
[EventDate "2020.03.07"]
[EventCountry "CZE"]
[SourceTitle "playchess.com"]
[Source "ChessBase"]
[SourceQuality "1"]
[TimeControl "5400+30"]

1. e4 {[%emt 0:00:00]} e5 {[%emt 0:00:00]} 2. Nf3 {[%emt 0:00:00]} Nf6 {[%emt 0:00:00]} 3. Nc3 {[%emt 0:00:09]} Nc6 {[%emt 0:00:00]} 4. d4 {[%emt 0:00:21]} exd4 {[%emt 0:00:00]} 5. Nd5 {[%emt 0:00:05]} Nb4 {[%emt 0:00:28]} 6. Nxd4 {[%emt 0:00:20]} Nxe4 {[%emt 0:00:58]} 7. Nb5 {[%emt 0:00:53]} Nxd5 {[%emt 0:00:14]} 8. Qxd5 {[%emt 0:00:07]} Nc5 {[%emt 0:02:32]} 9. Be3 {[%emt 0:00:46]} Ne6 {[%emt 0:00:06]} 10. Nxa7 {[%emt 0:00:47]} c6 {[%emt 0:03:11]} 11. Qd2 {[%emt 0:02:24]} d5 {[%emt 0:07:32]} 12. Nxc8 {[%emt 0:00:43]} Rxc8 {[%emt 0:00:25]} 13. c3 {[%emt 0:02:21]} Bd6 {[%emt 0:02:45]} 14. Bd3 {[%emt 0:03:09]} Qh4 {[%emt 0:04:29]} 15. g3 {[%emt 0:06:24]} Qf6 {[%emt 0:00:08]} 16. f4 {[%emt 0:04:26]} O-O {[%emt 0:04:04]} 17. O-O {[%emt 0:01:52]} Bc5 {[%emt 0:06:22]} 18. Rae1 {[%emt 0:05:42]} d4 {[%emt 0:04:45]} 19. cxd4 {[%emt 0:03:43]} Bxd4 {[%emt 0:02:47]} 20. Bxd4 {[%emt 0:06:56]} Qxd4+ {[%emt 0:00:56]} 21. Re3 {[%emt 0:01:04]} Rcd8 {[%emt 0:02:55]} 22. Qf2 {[%emt 0:01:18]} Qf6 {[%emt 0:08:42]} 23. Rfe1 {[%emt 0:07:02]} Rd7 {[%emt 0:09:36]} 24. Bc4 {[%emt 0:03:16]} Nc7 {[%emt 0:01:42]} 25. Re5 {[%emt 0:02:04]} Qd6 {[%emt 0:02:55]} 26. Kg2 {[%emt 0:03:40]} Qd4 27. Qxd4 {[%emt 0:05:03]} Rxd4 {[%emt 0:03:04]} 28. Bb3 {[%emt 0:00:07]} Nd5 {[%emt 0:04:55]} 29. Kf3 {[%emt 0:05:52]} g6 {[%emt 0:06:42]} 30. Bxd5 {[%emt 0:11:48]} cxd5 {[%emt 0:01:20]} 31. Ke3 {[%emt 0:00:29]} Rb4 {[%emt 0:00:50]} 32. b3 {[%emt 0:02:46]} Rd8 {[%emt 0:02:04]} 33. Kd3 {[%emt 0:03:18]} Kf8 {[%emt 0:03:23]} 34. Rc1 {[%emt 0:01:44]} Rd7 {[%emt 0:03:14]} 35. Rc5 {[%emt 0:02:40]} d4 {[%emt 0:00:42]} 36. Rc4 {[%emt 0:04:55]} Rxc4 {[%emt 0:04:14]} 37. bxc4 {[%emt 0:00:08]} Kg7 {[%emt 0:01:28]} 38. Rd5 {[%emt 0:03:46]} Re7 {[%emt 0:00:07]} 39. Rxd4 {[%emt 0:02:30]} Re1 {[%emt 0:01:17]} 40. Kc3 {[%emt 0:01:30]} Rh1 {[%emt 0:02:40]} 41. Rd2 {[%emt 0:00:43]} Kf6 {[%emt 0:00:24]} 42. Rb2 {[%emt 0:01:05]} h5 {[%emt 0:01:19]} 43. a4 {[%emt 0:00:00]} Rc1+ {[%emt 0:00:00]} 44. Kb4 {[%emt 0:00:00]} b6 {[%emt 0:00:00]} 45. Kb5 {[%emt 0:00:00]} h4 {[%emt 0:00:00]} 46. gxh4 {[%emt 0:00:00]} Kf5 {[%emt 0:00:00]} 47. Rb4 {[%emt 0:00:00]} Rf1 {[%emt 0:00:00]} 48. Kxb6 {[%emt 0:00:00]} Rxf4 {[%emt 0:00:00]} 49. a5 {[%emt 0:00:00]} Rxh4 {[%emt 0:00:00]} 50. a6 {[%emt 0:00:00]} Rxh2 {[%emt 0:00:00]} 51. a7 {[%emt 0:00:00]} Ra2 {[%emt 0:00:00]} 52. Rb5+ {[%emt 0:00:00]} 1-0

[Event "CZE-ch Junior 2020"]
[Site "Kouty nad Desnou"]
[Date "2020.03.09"]
[Round "5.4"]
[White "Mica, Marek"]
[Black "Stinka, Jakub"]
[Result "1/2-1/2"]
[ECO "D37"]
[WhiteElo "2306"]
[BlackElo "2263"]
[Annotator "ChessBase"]
[PlyCount "84"]
[EventDate "2020.03.07"]
[EventCountry "CZE"]
[SourceTitle "playchess.com"]
[Source "ChessBase"]
[SourceQuality "1"]
[TimeControl "5400+30"]

1. d4 {[%emt 0:00:00]} Nf6 {[%emt 0:00:00]} 2. Nf3 {[%emt 0:00:00]} e6 {[%emt 0:00:02]} 3. c4 {[%emt 0:00:00]} d5 {[%emt 0:00:23]} 4. Nc3 {[%emt 0:00:09]} Be7 {[%emt 0:00:55]} 5. Bg5 {[%emt 0:00:21]} Nbd7 {[%emt 0:02:48]} 6. cxd5 {[%emt 0:01:30]} Nxd5 {[%emt 0:00:34]} 7. Bxe7 {[%emt 0:02:45]} Qxe7 {[%emt 0:00:04]} 8. Nxd5 {[%emt 0:04:37]} exd5 {[%emt 0:00:14]} 9. e3 {[%emt 0:02:26]} O-O {[%emt 0:01:24]} 10. Bd3 {[%emt 0:00:39]} Nf6 {[%emt 0:01:02]} 11. O-O {[%emt 0:00:57]} Bg4 {[%emt 0:01:10]} 12. h3 {[%emt 0:00:28]} Bh5 {[%emt 0:00:19]} 13. Rc1 {[%emt 0:01:45]} c6 {[%emt 0:02:22]} 14. Be2 {[%emt 0:00:32]} Ne4 {[%emt 0:01:55]} 15. Ne5 {[%emt 0:04:31]} Bxe2 {[%emt 0:01:03]} 16. Qxe2 {[%emt 0:00:04]} a5 {[%emt 0:01:31]} 17. Kh2 {[%emt 0:03:07]} f6 {[%emt 0:03:56]} 18. Nd3 {[%emt 0:01:07]} a4 {[%emt 0:01:29]} 19. a3 {[%emt 0:01:27]} Nd6 {[%emt 0:01:53]} 20. Nc5 {[%emt 0:03:11]} f5 {[%emt 0:03:22]} 21. f4 {[%emt 0:06:10]} Rfe8 {[%emt 0:06:05]} 22. Rf3 {[%emt 0:00:52]} Nc4 {[%emt 0:17:30]} 23. Rxc4 {[%emt 0:07:40]} dxc4 {[%emt 0:00:19]} 24. Qxc4+ {[%emt 0:00:06]} Qf7 {[%emt 0:01:39]} 25. Qc2 {[%emt 0:00:35]} b5 {[%emt 0:05:43]} 26. Nd3 {[%emt 0:03:30]} Qb3 {[%emt 0:04:39]} 27. Qd2 {[%emt 0:10:18]} Rad8 {[%emt 0:01:51]} 28. g4 {[%emt 0:02:36]} Qd5 {[%emt 0:02:27]} 29. Qf2 {[%emt 0:01:51]} Re6 {[%emt 0:02:11]} 30. Rg3 {[%emt 0:07:42]} fxg4 {[%emt 0:05:50]} 31. Rxg4 {[%emt 0:00:28]} Qf5 {[%emt 0:04:10]} 32. Ne5 {[%emt 0:01:18]} c5 {[%emt 0:03:26]} 33. Qg2 {[%emt 0:04:18]} Qf6 {[%emt 0:01:25]} 34. dxc5 {[%emt 0:01:22]} Rxe5 {[%emt 0:07:29]} 35. fxe5 {[%emt 0:00:14]} Qxe5+ {[%emt 0:00:14]} 36. Rg3 {[%emt 0:00:42]} h5 {[%emt 0:02:41]} 37. h4 {[%emt 0:00:37]} Rd3 {[%emt 0:03:48]} 38. c6 {[%emt 0:04:47]} Rxe3 {[%emt 0:10:00]} 39. c7 {[%emt 0:00:35]} Qxc7 {[%emt 0:00:29]} 40. Qd5+ {[%emt 0:00:16]} Kf8 {[%emt 0:01:03]} 41. Qf5+ {[%emt 0:00:10]} Kg8 {[%emt 0:00:00]} 42. Qd5+ {[%emt 0:00:00]} Kf8 {[%emt 0:00:00]} 1/2-1/2

[Event "CZE-ch Junior 2020"]
[Site "Kouty nad Desnou"]
[Date "2020.03.09"]
[Round "5.5"]
[White "Sprenar, Petr"]
[Black "Sramek, Vojtech"]
[Result "1/2-1/2"]
[ECO "A50"]
[WhiteElo "2302"]
[BlackElo "2181"]
[Annotator "ChessBase"]
[PlyCount "93"]
[EventDate "2020.03.07"]
[EventCountry "CZE"]
[SourceTitle "playchess.com"]
[Source "ChessBase"]
[SourceQuality "1"]
[TimeControl "5400+30"]

1. d4 {[%emt 0:00:00]} Nf6 {[%emt 0:00:00]} 2. c4 {[%emt 0:00:00]} b6 {[%emt 0:00:00]} 3. Nc3 {[%emt 0:01:05]} Bb7 {[%emt 0:00:00]} 4. Qc2 {[%emt 0:00:26]} d5 {[%emt 0:00:00]} 5. Bg5 {[%emt 0:01:10]} dxc4 {[%emt 0:05:02]} 6. e3 {[%emt 0:02:00]} g6 {[%emt 0:16:20]} 7. Nf3 {[%emt 0:06:28]} Bg7 {[%emt 0:00:17]} 8. Bxc4 {[%emt 0:01:00]} O-O {[%emt 0:00:49]} 9. O-O {[%emt 0:04:52]} Nc6 {[%emt 0:05:16]} 10. Rfd1 {[%emt 0:04:47]} Qc8 {[%emt 0:11:57]} 11. Nd5 {[%emt 0:10:58]} Qd7 {[%emt 0:13:49]} 12. Nxf6+ {[%emt 0:02:52]} exf6 {[%emt 0:00:18]} 13. Bf4 {[%emt 0:01:13]} Ne7 {[%emt 0:09:34]} 14. Be2 {[%emt 0:06:12]} Nd5 {[%emt 0:03:44]} 15. Bg3 {[%emt 0:00:05]} Qe7 {[%emt 0:00:45]} 16. a3 {[%emt 0:06:16]} Rfe8 {[%emt 0:01:10]} 17. Bc4 {[%emt 0:05:45]} Rac8 {[%emt 0:01:50]} 18. Qb3 {[%emt 0:01:07]} Red8 {[%emt 0:04:12]} 19. Ne1 {[%emt 0:06:32]} c5 {[%emt 0:08:57]} 20. dxc5 {[%emt 0:01:13]} Rxc5 {[%emt 0:00:40]} 21. Nd3 {[%emt 0:06:53]} Rcc8 {[%emt 0:00:51]} 22. Nb4 {[%emt 0:04:04]} Nxb4 {[%emt 0:01:12]} 23. axb4 {[%emt 0:03:43]} Bc6 {[%emt 0:07:00]} 24. b5 {[%emt 0:02:17]} Be4 {[%emt 0:01:45]} 25. f3 {[%emt 0:02:42]} Bf5 {[%emt 0:00:08]} 26. Bd5 {[%emt 0:05:04]} Be6 {[%emt 0:02:32]} 27. Bxe6 {[%emt 0:03:05]} fxe6 {[%emt 0:00:53]} 28. Be1 {[%emt 0:02:03]} f5 {[%emt 0:01:34]} 29. Bb4 {[%emt 0:00:41]} Qf7 {[%emt 0:00:43]} 30. Rac1 {[%emt 0:01:33]} Rxc1 {[%emt 0:01:47]} 31. Rxc1 {[%emt 0:00:07]} Bf8 {[%emt 0:00:42]} 32. Bxf8 {[%emt 0:01:00]} Rxf8 {[%emt 0:00:09]} 33. Rc6 {[%emt 0:00:44]} e5 {[%emt 0:00:39]} 34. Qxf7+ {[%emt 0:02:38]} Rxf7 {[%emt 0:00:27]} 35. Re6 {[%emt 0:00:55]} Rd7 {[%emt 0:01:21]} 36. Rxe5 {[%emt 0:00:03]} Rd1+ {[%emt 0:00:09]} 37. Kf2 {[%emt 0:00:14]} Rd2+ {[%emt 0:00:07]} 38. Kg3 {[%emt 0:00:05]} Rxb2 {[%emt 0:00:20]} 39. Re7 {[%emt 0:03:54]} Rxb5 {[%emt 0:00:47]} 40. Rxa7 {[%emt 0:00:18]} Rb4 {[%emt 0:00:54]} 41. Rb7 {[%emt 0:01:40]} b5 {[%emt 0:00:00]} 42. f4 {[%emt 0:00:00]} Re4 {[%emt 0:00:00]} 43. Kf3 {[%emt 0:00:00]} Rb4 {[%emt 0:00:00]} 44. h3 {[%emt 0:00:00]} Rb1 {[%emt 0:00:00]} 45. g4 {[%emt 0:00:00]} b4 {[%emt 0:00:00]} 46. Rb8+ {[%emt 0:00:00]} Kg7 {[%emt 0:00:00]} 47. Rb7+ {[%emt 0:00:00]} 1/2-1/2

[Event "CZE-ch Junior 2020"]
[Site "Kouty nad Desnou"]
[Date "2020.03.09"]
[Round "5.6"]
[White "Simet, Martin"]
[Black "Skalsky, Alexandr"]
[Result "0-1"]
[ECO "A45"]
[WhiteElo "2218"]
[BlackElo "2201"]
[Annotator "ChessBase"]
[PlyCount "72"]
[EventDate "2020.03.07"]
[EventCountry "CZE"]
[SourceTitle "playchess.com"]
[Source "ChessBase"]
[SourceQuality "1"]
[TimeControl "5400+30"]

1. d4 {[%emt 0:00:00]} Nf6 {[%emt 0:00:00]} 2. Bf4 {[%emt 0:00:00]} g6 {[%emt 0:00:00]} 3. e3 {[%emt 0:00:51]} Bg7 {[%emt 0:00:00]} 4. Nd2 {[%emt 0:00:57]} d6 {[%emt 0:03:04]} 5. Ngf3 {[%emt 0:03:20]} c5 {[%emt 0:07:12]} 6. c3 {[%emt 0:02:28]} O-O {[%emt 0:00:23]} 7. Be2 {[%emt 0:03:01]} Nc6 {[%emt 0:03:11]} 8. h3 {[%emt 0:05:07]} cxd4 {[%emt 0:01:21]} 9. exd4 {[%emt 0:06:40]} e5 {[%emt 0:01:11]} 10. dxe5 {[%emt 0:04:10]} dxe5 {[%emt 0:00:16]} 11. Nxe5 {[%emt 0:02:39]} Nd5 {[%emt 0:00:38]} 12. Nxc6 {[%emt 0:01:53]} bxc6 {[%emt 0:00:03]} 13. Bg3 {[%emt 0:10:32]} Re8 {[%emt 0:00:32]} 14. O-O {[%emt 0:11:58]} Bxc3 {[%emt 0:00:13]} 15. Qc1 {[%emt 0:04:52]} Bxb2 {[%emt 0:21:39]} 16. Qxb2 {[%emt 0:00:09]} Rxe2 {[%emt 0:00:02]} 17. Rfd1 {[%emt 0:04:41]} Qb6 {[%emt 0:07:39]} 18. Qc1 {[%emt 0:01:16]} Bf5 {[%emt 0:11:38]} 19. Nf3 {[%emt 0:00:38]} Re4 {[%emt 0:06:59]} 20. Qh6 {[%emt 0:11:07]} f6 {[%emt 0:04:45]} 21. Rac1 {[%emt 0:00:37]} Rae8 {[%emt 0:02:12]} 22. Bd6 {[%emt 0:00:44]} Bd7 {[%emt 0:06:22]} 23. Nh4 {[%emt 0:04:13]} g5 {[%emt 0:04:11]} 24. Nf3 {[%emt 0:00:50]} R4e6 {[%emt 0:09:08]} 25. Bc5 {[%emt 0:02:07]} Qb8 {[%emt 0:01:50]} 26. Rb1 {[%emt 0:01:14]} Qc7 {[%emt 0:00:05]} 27. Rb3 {[%emt 0:04:19]} Nf4 {[%emt 0:01:48]} 28. Rdb1 {[%emt 0:02:10]} f5 {[%emt 0:02:31]} 29. Qxg5+ {[%emt 0:02:21]} Rg6 {[%emt 0:00:00]} 30. Rb7 {[%emt 0:00:16]} Nxh3+ {[%emt 0:02:54]} 31. Kf1 {[%emt 0:02:34]} Qa5 {[%emt 0:01:39]} 32. gxh3 {[%emt 0:01:56]} Rxg5 {[%emt 0:00:09]} 33. Nxg5 {[%emt 0:00:06]} Bc8 {[%emt 0:01:04]} 34. Re7 {[%emt 0:00:55]} Rxe7 {[%emt 0:00:27]} 35. Bxe7 {[%emt 0:00:02]} Qe5 {[%emt 0:00:57]} 36. Re1 {[%emt 0:00:14]} Ba6+ {[%emt 0:00:03]} 0-1

[Event "CZE-ch Junior 2020"]
[Site "Kouty nad Desnou"]
[Date "2020.03.11"]
[Round "7.2"]
[White "Bulockin, Martin"]
[Black "Cerny, David"]
[Result "1-0"]
[ECO "B50"]
[WhiteElo "2218"]
[BlackElo "2181"]
[Annotator "RC"]
[PlyCount "89"]
[EventDate "2020.03.07"]
[EventCountry "CZE"]
[SourceTitle "playchess.com"]
[Source "ChessBase"]
[SourceQuality "1"]
[TimeControl "5400+30"]

1. e4 {[%emt 0:00:00]} c5 {[%emt 0:00:00]} 2. Nf3 {[%emt 0:00:00]} d6 {[%emt 0:00:15]} 3. c3 {[%emt 0:00:05]} Nf6 {[%emt 0:00:08]} 4. Be2 {[%emt 0:00:06]} Nc6 {[%emt 0:00:16]} 5. d4 {[%emt 0:00:09]} Bg4 {[%emt 0:00:36]} 6. d5 {[%emt 0:06:22]} Bxf3 {[%emt 0:00:42]} 7. Bxf3 {[%emt 0:01:05]} Ne5 {[%emt 0:00:05]} 8. Be2 {[%emt 0:01:39]} g6 {[%emt 0:00:19]} 9. f3 {[%emt 0:02:42]} Bg7 {[%emt 0:00:19]} 10. Be3 {[%emt 0:01:57]} O-O {[%emt 0:00:20]} 11. O-O {[%emt 0:01:39]} a6 {[%emt 0:01:11]} 12. c4 {[%emt 0:03:17]} Re8 {[%emt 0:01:27]} 13. Nc3 {[%emt 0:04:32]} e6 {[%emt 0:01:23]} 14. f4 {[%emt 0:08:36]} Ned7 {[%emt 0:00:43]} 15. dxe6 {[%emt 0:00:28]} Rxe6 {[%emt 0:00:26]} 16. Bf3 {[%emt 0:00:14]} Rb8 {[%emt 0:05:28]} 17. a4 {[%emt 0:05:25]} b5 {[%emt 0:04:48]} 18. axb5 {[%emt 0:01:14]} axb5 {[%emt 0:00:05]} 19. cxb5 {[%emt 0:03:04]} Nb6 {[%emt 0:00:33]} 20. Bf2 {[%emt 0:06:37]} Qc7 {[%emt 0:02:58]} 21. Qc2 {[%emt 0:02:24]} Rbe8 {[%emt 0:01:05]} 22. Ra6 {[%emt 0:02:25]} Nfd7 {[%emt 0:01:20]} 23. Nd5 {[%emt 0:04:41]} Nxd5 {[%emt 0:00:30]} 24. exd5 {[%emt 0:00:02]} R6e7 {[%emt 0:01:34]} 25. Rc6 {[%emt 0:04:08]} Qb8 {[%emt 0:00:54]} 26. Qa4 {[%emt 0:04:59]} Nb6 {[%emt 0:03:36]} 27. Qa6 Nc4 {[%emt 0:02:47]} 28. b6 {[%emt 0:02:34]} Nd2 {[%emt 0:00:56]} 29. Rd1 {[%emt 0:01:47]} Nxf3+ {[%emt 0:00:31]} 30. gxf3 {[%emt 0:00:01]} Bf6 {[%emt 0:08:19]} 31. Rb1 {[%emt 0:04:42]} Kg7 {[%emt 0:02:09]} 32. b4 {[%emt 0:00:36]} cxb4 {[%emt 0:07:41]} 33. Rxb4 {[%emt 0:00:33]} Re1+ {[%emt 0:23:29]} 34. Kg2 {[%emt 0:00:52]} R1e2 {[%emt 0:06:30]} 35. Kf1 {[%emt 0:06:11]} Rd2 {[%emt 0:07:24]} 36. b7 {[%emt 0:01:34]} Qd8 {[%emt 0:02:55]} 37. Rc8 {[%emt 0:09:45]} Bh4 {[%emt 0:02:51]} 38. Qa1+ {[%emt 0:00:19]} Kh6 {[%emt 0:02:49]} 39. Rxd8 {[%emt 0:00:21]} Rxf2+ {[%emt 0:00:21]} 40. Kg1 {[%emt 0:00:03]} Ree2 {[%emt 0:01:01]} 41. Qf1 {[%emt 0:00:10]} Rxf1+ {[%emt 0:02:10]} 42. Kxf1 {[%emt 0:00:01]} Re1+ {[%emt 0:00:06]} 43. Kg2 {[%emt 0:00:05]} Re2+ {[%emt 0:00:42]} 44. Kh3 {[%emt 0:00:08]} Bf2 {[%emt 0:01:48]} 45. b8=Q {[%emt 0:00:26]} 1-0

[Event "CZE-ch Junior 2020"]
[Site "Kouty nad Desnou"]
[Date "2020.03.12"]
[Round "8.1"]
[White "Brejnik, Gustav"]
[Black "Sramek, Vojtech"]
[Result "1/2-1/2"]
[ECO "D12"]
[WhiteElo "2259"]
[BlackElo "2181"]
[Annotator "RC"]
[PlyCount "67"]
[EventDate "2020.03.07"]
[EventCountry "CZE"]
[SourceTitle "playchess.com"]
[Source "ChessBase"]
[SourceQuality "1"]
[TimeControl "5400+30"]

1. d4 {[%emt 0:00:00]} d5 {[%emt 0:00:00]} 2. c4 {[%emt 0:00:00]} c6 {[%emt 0:00:00]} 3. Nf3 {[%emt 0:00:00]} Nf6 {[%emt 0:00:00]} 4. e3 {[%emt 0:00:00]} Bf5 {[%emt 0:00:30]} 5. Nc3 {[%emt 0:00:52]} e6 {[%emt 0:00:21]} 6. Nh4 {[%emt 0:00:26]} Bg6 {[%emt 0:00:09]} 7. Be2 {[%emt 0:02:06]} Bd6 {[%emt 0:02:42]} 8. Bd2 {[%emt 0:06:50]} Nbd7 {[%emt 0:03:32]} 9. Nxg6 {[%emt 0:04:45]} hxg6 {[%emt 0:00:07]} 10. g3 {[%emt 0:00:08]} O-O {[%emt 0:11:01]} 11. O-O {[%emt 0:14:15]} dxc4 {[%emt 0:16:39]} 12. Bxc4 {[%emt 0:00:24]} e5 {[%emt 0:00:10]} 13. dxe5 {[%emt 0:02:09]} Nxe5 {[%emt 0:00:07]} 14. Bb3 {[%emt 0:01:25]} Qe7 {[%emt 0:07:04]} 15. Qe2 {[%emt 0:01:34]} g5 {[%emt 0:10:29]} 16. f4 {[%emt 0:30:03]} gxf4 {[%emt 0:00:16]} 17. gxf4 {[%emt 0:00:04]} Ng6 {[%emt 0:08:53]} 18. e4 {[%emt 0:05:35]} Bc5+ {[%emt 0:02:08]} 19. Kh1 {[%emt 0:00:25]} Rfe8 {[%emt 0:09:37]} 20. f5 {[%emt 0:10:20]} Ne5 {[%emt 0:01:28]} 21. Bg5 {[%emt 0:00:04]} Rad8 {[%emt 0:02:20]} 22. Rad1 {[%emt 0:02:57]} Rxd1 {[%emt 0:02:01]} 23. Rxd1 {[%emt 0:00:35]} Rd8 {[%emt 0:08:24]} 24. h3 {[%emt 0:02:06]} Rxd1+ {[%emt 0:01:20]} 25. Qxd1 {[%emt 0:00:11]} Ned7 {[%emt 0:00:49]} 26. a3 {[%emt 0:05:42]} Bd6 {[%emt 0:01:07]} 27. Qd4 {[%emt 0:01:37]} Nc5 {[%emt 0:03:16]} 28. Bxf6 {[%emt 0:01:00]} gxf6 {[%emt 0:00:18]} 29. Bc2 {[%emt 0:01:09]} Be5 {[%emt 0:04:23]} 30. Qe3 {[%emt 0:00:11]} Qd6 {[%emt 0:00:40]} 31. b4 {[%emt 0:02:03]} Nd7 {[%emt 0:01:21]} 32. Ne2 {[%emt 0:01:01]} c5 {[%emt 0:01:25]} 33. Bb3 {[%emt 0:00:42]} cxb4 {[%emt 0:01:41]} 34. Qh6 1/2-1/2

[Event "CZE-ch Junior 2020"]
[Site "Kouty nad Desnou"]
[Date "2020.03.12"]
[Round "9.1"]
[White "Bulockin, Martin"]
[Black "Brejnik, Gustav"]
[Result "1/2-1/2"]
[ECO "D00"]
[WhiteElo "2218"]
[BlackElo "2259"]
[Annotator "RC"]
[PlyCount "105"]
[EventDate "2020.03.07"]
[EventType "swiss"]
[EventCountry "CZE"]
[SourceTitle "playchess.com"]
[Source "ChessBase"]
[SourceQuality "1"]
[TimeControl "5400+30"]

1. d4 {[%emt 0:00:00]} d5 {[%emt 0:06:24]} 2. Bf4 {[%emt 0:00:00]} c5 {[%emt 0:00:29]} 3. e3 {[%emt 0:00:09]} cxd4 {[%emt 0:00:06]} 4. exd4 {[%emt 0:00:26]} Nc6 {[%emt 0:00:03]} 5. c3 {[%emt 0:00:18]} Bf5 {[%emt 0:03:14]} 6. Nd2 {[%emt 0:01:51]} e6 {[%emt 0:00:28]} 7. Qb3 {[%emt 0:02:21]} Qd7 {[%emt 0:04:51]} 8. Ngf3 {[%emt 0:01:36]} Nge7 {[%emt 0:01:09]} 9. h3 {[%emt 0:02:39]} a6 {[%emt 0:07:12]} 10. a4 {[%emt 0:03:05]} h6 {[%emt 0:05:37]} 11. Be2 {[%emt 0:01:22]} Nc8 {[%emt 0:01:49]} 12. O-O {[%emt 0:02:14]} Bd6 {[%emt 0:06:16]} 13. Be3 {[%emt 0:04:03]} O-O {[%emt 0:00:33]} 14. Qd1 {[%emt 0:01:57]} Bc7 {[%emt 0:10:13]} 15. b4 {[%emt 0:09:05]} Nd6 {[%emt 0:01:04]} 16. Ne5 {[%emt 0:07:24]} Nxe5 {[%emt 0:05:57]} 17. dxe5 {[%emt 0:00:06]} Ne4 {[%emt 0:00:08]} 18. Nxe4 {[%emt 0:00:51]} Bxe4 {[%emt 0:00:06]} 19. Bc5 {[%emt 0:03:35]} Rfb8 {[%emt 0:09:30]} 20. Bd4 {[%emt 0:02:31]} Qd8 {[%emt 0:01:38]} 21. f3 {[%emt 0:04:23]} Bf5 {[%emt 0:03:40]} 22. Qd2 {[%emt 0:01:32]} Bb6 {[%emt 0:01:47]} 23. Rfc1 {[%emt 0:03:15]} Rc8 {[%emt 0:00:33]} 24. a5 {[%emt 0:09:14]} Bxd4+ {[%emt 0:00:05]} 25. cxd4 {[%emt 0:00:04]} Rxc1+ {[%emt 0:14:54]} 26. Rxc1 {[%emt 0:00:14]} Rc8 {[%emt 0:00:02]} 27. Rc5 {[%emt 0:00:37]} Rxc5 {[%emt 0:00:18]} 28. bxc5 {[%emt 0:00:09]} Qd7 {[%emt 0:05:52]} 29. Qc3 {[%emt 0:06:07]} Qc6 {[%emt 0:03:06]} 30. Qb3 {[%emt 0:00:46]} g5 {[%emt 0:01:34]} 31. Kf2 {[%emt 0:04:11]} Kg7 {[%emt 0:02:16]} 32. Ke3 {[%emt 0:01:41]} h5 {[%emt 0:00:43]} 33. Bd1 {[%emt 0:01:28]} Qc7 {[%emt 0:03:07]} 34. Qb6 {[%emt 0:00:22]} Qe7 {[%emt 0:00:01]} 35. Qd6 {[%emt 0:01:09]} Qe8 {[%emt 0:00:33]} 36. c6 {[%emt 0:01:48]} bxc6 {[%emt 0:01:36]} 37. Ba4 {[%emt 0:00:05]} Bb1 {[%emt 0:00:31]} 38. Bxc6 {[%emt 0:01:05]} Qc8 {[%emt 0:00:01]} 39. h4 {[%emt 0:05:18]} gxh4 {[%emt 0:01:05]} 40. Kf2 {[%emt 0:02:32]} Ba2 {[%emt 0:00:37]} 41. Kg1 {[%emt 0:01:34]} Qh8 {[%emt 0:00:00]} 42. Qe7 {[%emt 0:00:00]} Qh6 {[%emt 0:00:00]} 43. Qf6+ {[%emt 0:00:00]} Qxf6 {[%emt 0:00:00]} 44. exf6+ {[%emt 0:00:00]} Kxf6 {[%emt 0:00:00]} 45. Kf2 {[%emt 0:00:00]} Bc4 {[%emt 0:00:00]} 46. Ba4 {[%emt 0:00:00]} Kg5 {[%emt 0:00:00]} 47. Ke3 {[%emt 0:00:00]} Bf1 {[%emt 0:00:00]} 48. Kf2 {[%emt 0:00:00]} Bc4 {[%emt 0:00:00]} 49. Ke3 {[%emt 0:00:00]} f6 {[%emt 0:00:00]} 50. Bd7 {[%emt 0:00:00]} e5 {[%emt 0:00:00]} 51. f4+ {[%emt 0:00:00]} exf4+ {[%emt 0:00:00]} 52. Kf3 {[%emt 0:00:00]} Bb3 {[%emt 0:03:57]} 53. Bc8 {[%emt 0:00:00]} 1/2-1/2